Cogmind - Beta 17.1 @@@ ROGUE MODE // 2026.09.01 @ 23:29:06 Player: Godsword Result: Destroyed by T6-ANM(j) with Overtuned Pulse Rifle Performance ------------- Evolutions (1) 500 Regions Visited (5) 1000 Robots Destroyed (31) 155 Value Destroyed (782) 782 Prototype IDs (9) 180 Alien Tech Used (0) 0 Bonus (707) 707 TOTAL SCORE: 3324 Bonus ------- Follower Combat Kills 144 Registered with UFD 300 Met Optimus in HQ 500 Friendly Fire -237 Cogmind --------- Core Integrity 0/400 Matter 300/300 Energy 26/100 System Corruption 4% Temperature Cool (73) Movement Hovering (56) Location -9/Scraptown Parts ------- > --- POWER (1) -------- (None) > --- PROPULSION (4) --- Hover Unit Hover Unit > --- UTILITY (2) ------ (None) > --- WEAPON (2) ------- (None) > --- INVENTORY (5) ---- Light Deuterium Engine Deep Structural Scanner Surveybot 24 Chip Companion Sword Peak State ------------ > --- POWER ------------ Light Angular Momentum Engine > --- PROPULSION ------- VTOL Module VTOL Module VTOL Module VTOL Module > --- UTILITY ---------- Structural Scanner Surveybot 17 Chip > --- WEAPON ----------- Katana Companion Sword > --- INVENTORY -------- Flight Unit VTOL Module Xenon Bombardment Thruster Surveybot 24 Chip Makeshift Transmission Jammer [Rating: 32] Favorites ----------- Power Cooled Ion Engine Engine Cooled Ion Engine Propulsion VTOL Module Hover Unit Hover Unit Flight Unit VTOL Module Utility Structural Scanner Device Structural Scanner Storage Small Storage Unit Processor Surveybot 17 Chip Protection Hardened Light Armor Plating Weapon Katana Energy Gun Improved EM Shotgun Energy Cannon Advanced Beam Cannon Ballistic Gun Improved Assault Rifle Ballistic Cannon Improved Light Cannon Launcher Mini Grenade Launcher Slashing Weapon Katana Build | -11 -10 -9 -9 -9 -9 ------- Run | Yrd Mat Mat Sto Rec Scr Slots Evolved 2 | . . 2 . . . Power . | . . . . . . Propulsion 2 | . . 2 . . . Utility . | . . . . . . Weapon . | . . . . . . Parts Attached 48 | . 8 4 20 4 12 Power 5 | . 1 . 3 . 1 Engine 5 | . 1 . 3 . 1 Core . | . . . . . . Reactor . | . . . . . . Propulsion 20 | . 5 2 5 1 7 Treads . | . . . . . . Leg . | . . . . . . Wheel . | . . . . . . Hover 10 | . 3 2 1 . 4 Flight 10 | . 2 . 4 1 3 Utility 8 | . 1 . 2 3 2 Device 2 | . 1 . . 1 . Storage 3 | . . . 2 1 . Processor 1 | . . . . . 1 Hackware . | . . . . . . Protection 2 | . . . . 1 1 Artifact . | . . . . . . Weapon 15 | . 1 2 10 . 2 Energy Gun 6 | . 1 2 3 . . Energy Cannon 3 | . . . 3 . . Ballistic Gun 1 | . . . 1 . . Ballistic Cannon 2 | . . . 2 . . Launcher 1 | . . . . . 1 Special Weapon . | . . . . . . Impact Weapon . | . . . . . . Slashing Weapon 2 | . . . 1 . 1 Piercing Weapon . | . . . . . . Special Melee Weapon . | . . . . . . Unidentified Prototypes 8 | . . . 7 . 1 Corrupted Parts 1 | . . . 1 . . System Corruption 4 | . . . 4 . . Parts Lost 17 | . 1 . 5 . 11 Power 1 | . . . . . 1 Propulsion 12 | . . . 4 . 8 Utility 4 | . 1 . 1 . 2 Weapon . | . . . . . . Highest Loss Streak 10 | . 1 . 4 . 10 To Critical Strikes . | . . . . . . Average Backups 5 | . 2 3 7 4 4 Power . | . . 1 1 1 . Propulsion 2 | . . . 3 1 2 Utility 1 | . . 1 . 2 1 Weapon . | . 1 1 2 . . Tool/Special . | . . . . . . Unused Backups 14 | . 1 . 5 2 6 Power 3 | . . . 1 1 1 Propulsion 1 | . . . . . 1 Utility 6 | . . . 1 1 4 Weapon 4 | . 1 . 3 . . Tool/Special . | . . . . . . Average Slot Usage (%) 85 | . 68 97 96 77 91 Engine 10 | . 9 11 11 11 10 Hover 10 | . 4 41 40 . . Flight 30 | . 14 . 1 43 42 Device 7 | . 3 11 8 2 11 Storage 2 | . . . 12 . . Protection 5 | . 14 11 1 8 2 Energy Gun 4 | . 19 22 9 . . Energy Cannon 1 | . . . 7 . . Slashing Weapon 10 | . . . . 11 18 Peak Build Rating 32 | . 7 9 18 20 32 Average Rating 17 | . 4 8 13 16 24 On Entrance 8 | . . 7 9 14 18 Avg Prop Armor Cover (%) 10 | . . . 10 10 10 Naked Turns 91 | . 91 . . . . Heaviest Build 22 | . 8 9 22 16 16 Greatest Support 26 | 3 12 24 24 16 26 Greatest Overweight (x) 3 | . 1 . 3 . . Average Overweight (x) . | . . . . . . Largest Inventory Capacity 8 | 5 5 5 8 5 5 Average Capacity 5 | 5 5 5 7 5 5 Most Carried 8 | . 5 4 8 5 5 Average Carried 5 | . 2 3 7 4 4 Final Capacity 5 | 5 5 5 5 5 5 Final Carried 5 | . 5 4 4 5 4 Class Distribution -------------------- 54% | Commander-Sprinter 21% | Scavenger-Mutant 12% | Mutant 11% | Sprinter Dominant Class ---------------- Mutant | -10/Materials Mutant | -9/Materials Scavenger-Mutant | -9/Storage Commander-Sprinter | -9/Recycling Commander-Sprinter | -9/Scraptown Resources | -11 -10 -9 -9 -9 -9 ----------- Run | Yrd Mat Mat Sto Rec Scr Matter Collected 951 | 150 151 . 459 76 115 Remotely . | . . . . . . Salvage Created 1620 | . 236 . 417 847 120 Parts 80 | . 14 . 12 40 14 Haulers Intercepted . | . . . . . . Recyclers Shooed 1 | . . . 1 . . Parts Field Recycled . | . . . . . . Retrieved Matter . | . . . . . . Parts Self-Destructed . | . . . . . . Prevented . | . . . . . . Parts Restored . | . . . . . . Kills | -11 -10 -9 -9 -9 -9 ------- Run | Yrd Mat Mat Sto Rec Scr Combat Hostiles Destroyed 21 | . 7 . 10 3 1 Melee 4 | . . . . 3 1 Guns 6 | . 6 . . . . Cannons 10 | . . . 10 . . Classes Destroyed 7 | . 3 . 3 1 . Recycler 7 | . . . 1 6 . Watcher 3 | . 2 . 1 . . Swarmer 3 | . 3 . . . . Grunt 10 | . 4 . 6 . . Brawler 1 | . . . . 1 . Duelist 1 | . . . 1 . . Sentry 5 | . . . 3 2 . Best Kill Streak 9 | . 3 . 9 4 1 Combat Bots Only 9 | . 3 . 9 1 1 Max Kills in Single Turn 1 | . 1 . 1 1 1 Gunslinging . | . . . . . . Exploded . | . . . . . . Melee 1 | . . . . 1 1 Uniques/NPCs Destroyed 1 | . . . . . 1 Optimus (-9/Scraptown) Combat | -11 -10 -9 -9 -9 -9 -------- Run | Yrd Mat Mat Sto Rec Scr Hostile Shots Fired 166 | . 56 . 49 10 51 Missed 62 | . 26 . 12 6 18 Hits 104 | . 30 . 37 4 33 Melee 2 | . . . . 2 . Projectile 102 | . 30 . 37 2 33 Critical Strikes 5 | . . . 2 . 3 Damage Taken 1487 | . 267 . 474 81 665 Core 475 | . 68 . 98 30 279 Absorbed by Shields . | . . . . . . Core Remaining (%) 86 | 100 72 . . . . Volleys Fired 91 | . 31 . 60 . . Largest 2 | . 2 . 2 . . Hottest 136 | . 80 . 136 . . Shots Fired 180 | . 61 . 119 . . Gun 83 | . 61 . 22 . . Cannon 97 | . . . 97 . . Launcher . | . . . . . . Special . | . . . . . . Kinetic 47 | . . . 47 . . Thermal 111 | . 61 . 50 . . Explosive . | . . . . . . Electromagnetic 22 | . . . 22 . . Robot Hit Streak 8 | . 8 . 8 . . Robot Miss Streak 5 | . 5 . 4 . . Penetration Max . | . . . . . . Secondary Targets 1 | . 1 . . . . Max Gunslinging Chain 1 | . 1 . . . . Shots Hit Robots 106 | . 32 . 32 37 5 Core Hits 43 | . 13 . 16 13 1 Critical Kills . | . . . . . . Critical Parts Destroyed . | . . . . . . Critical Strikes 4 | . 2 . 2 . . Burn 2 | . 2 . . . . Blast 2 | . . . 2 . . Melee Attacks 49 | . . . . 42 7 Impact . | . . . . . . Slashing 49 | . . . . 42 7 Piercing . | . . . . . . Sneak Attacks 10 | . . . . 8 2 Combat Hostiles 1 | . . . . . 1 Follow-up Attacks 1 | . . . . . 1 Damage Inflicted 3095 | . 347 . 694 1833 221 Guns 428 | . 343 . 85 . . Cannons 609 | . . . 609 . . Explosions . | . . . . . . Melee 2051 | . . . . 1833 218 Ramming 7 | . 4 . . . 3 Kinetic 609 | . . . 609 . . Thermal 343 | . 343 . . . . Explosive . | . . . . . . Electromagnetic 85 | . . . 85 . . Impact . | . . . . . . Slashing 2051 | . . . . 1833 218 Piercing . | . . . . . . Highest Corruption 4 | . . . 4 4 . Average Corruption 4 | . . . 4 4 . Corruption Purged . | . . . . . . Corruption Blocked . | . . . . . . Effects 25 | . . . 10 15 . Message Errors 6 | . . . 3 3 . Matter Fused 9 | . . . 4 5 . Heat Flow Errors 4 | . . . . 4 . Energy Discharges 3 | . . . 1 2 . Data Loss (minor) 1 | . . . . 1 . Data Loss (major) 1 | . . . 1 . . Weapon Failures 1 | . . . 1 . . Overload Shots . | . . . . . . Overflow Damage 341 | . . . . 322 19 Projectiles . | . . . . . . Explosions . | . . . . . . Melee 341 | . . . . 322 19 Knockbacks . | . . . . . . Impact . | . . . . . . Kinetic . | . . . . . . Secondary . | . . . . . . Self-Inflicted Damage 3 | . 2 . . . 1 Shots . | . . . . . . Rammed 3 | . 2 . . . 1 Targets Rammed 3 | . 2 . . . 1 Kicked . | . . . . . . Crushed . | . . . . . . Highest Temperature 374 | . 213 . 374 230 49 Average Temperature 93 | . 65 . 108 90 16 Received Heat Transfer 629 | . 48 . 261 . 320 Effects 1 | . . . . 1 . Energy Bleed 1 | . . . . 1 . Siege Activations . | . . . . . . Martial Activations . | . . . . . . Shielding Activations . | . . . . . . Robots Disrupted . | . . . . . . Combat Hostiles . | . . . . . . Robots Corrupted . | . . . . . . Combat Hostiles . | . . . . . . Parts Fried . | . . . . . . Impact Corruptions . | . . . . . . Robots Melted 1 | . 1 . . . . Combat Hostiles 1 | . 1 . . . . Parts Melted 5 | . 5 . . . . Heat Transferred 1332 | . 1332 . . . . Parts Sabotaged . | . . . . . . Parts Stolen . | . . . . . . Parts Stripped . | . . . . . . Power Chain Reactions . | . . . . . . Alert | -11 -10 -9 -9 -9 -9 ------- Run | Yrd Mat Mat Sto Rec Scr Maximum Alert Level 1 | . . . 1 . . Low Security (%) 96 | 100 100 100 88 100 . Level 1 3 | . . . 11 . . Level 2 . | . . . . . . Level 3 . | . . . . . . Level 4 . | . . . . . . Level 5 . | . . . . . . High Security . | . . . . . . Max Security . | . . . . . . Peak Influence 253 | . 113 42 253 117 . Initial 92 | . . 37 17 92 . Average 46 | . 52 33 41 48 . Influence Increases 819 | . 210 15 384 210 . Destroy 0b10 Robot/C 500 | . 140 . 260 100 . Destroy 0b10 Robot/NC 90 | . 10 . 10 70 . Destroy Leader 86 | . 24 . 62 . . Allied During Kill 30 | . . . 15 15 . Successful Hack 18 | . 6 . 7 5 . Destroy Structure 20 | . . . . 20 . Partial Spotted 15 | . . 15 . . . Lose Combat Pursuer 60 | . 30 . 30 . . Influence Decreases 819 | . 120 63 189 447 . Entered New Map 223 | . . 53 25 145 . Time Decay 446 | . 110 10 84 242 . Lost Part 50 | . 10 . 40 . . Lost Ally 100 | . . . 40 60 . Squads Dispatched 5 | . 1 . 4 . . Investigation 2 | . 1 . 1 . . Extermination . | . . . . . . Reinforcement 1 | . . . 1 . . Assault 2 | . . . 2 . . Garrison . | . . . . . . Intercept . | . . . . . . Searches Triggered . | . . . . . . Construction Impeded . | . . . . . . Haulers Reinforced . | . . . . . . Active Scanning Responses . | . . . . . . Cargo Convoy Interrupts . | . . . . . . Stealth | -11 -10 -9 -9 -9 -9 --------- Run | Yrd Mat Mat Sto Rec Scr Distress Signals 2 | . 1 . 1 . . Communications Jammed . | . . . . . . Distress Signals . | . . . . . . Times Spotted 81 | . 11 . 25 3 42 Peak Tracking Total 18 | . 5 . 10 1 18 Tactical Retreats 3 | . 2 . 1 . . Traps | -11 -10 -9 -9 -9 -9 ------- Run | Yrd Mat Mat Sto Rec Scr Traps Triggered 1 | . 1 . . . . Indirectly . | . . . . . . Trap Hack Attempts . | . . . . . . Triggered . | . . . . . . Disarmed . | . . . . . . Reprogrammed . | . . . . . . Reused . | . . . . . . Traps Extracted . | . . . . . . Installed . | . . . . . . Triggered . | . . . . . . Machines | -11 -10 -9 -9 -9 -9 ---------- Run | Yrd Mat Mat Sto Rec Scr Machines Disabled 2 | . . . . . 2 Max in Single Turn 1 | . . . . . 1 Machines Repaired . | . . . . . . Machines Dismantled . | . . . . . . Machines Sabotaged . | . . . . . . Overloaded Fab Kills . | . . . . . . Hacking | -11 -10 -9 -9 -9 -9 --------- Run | Yrd Mat Mat Sto Rec Scr Machines Accessed 16 | . 3 1 1 7 4 Terminals 4 | . 1 . 1 2 . Fabricators . | . . . . . . Repair Stations 1 | . 1 . . . . Recycling Units 7 | . 1 1 . 5 . Scanalyzers . | . . . . . . Garrison Access . | . . . . . . Total Hacks 47 | . 3 3 2 13 26 Successful 37 | . 2 1 1 7 26 Failed 10 | . 1 2 1 6 . Catastrophic 2 | . 1 . 1 . . Database Lockouts . | . . . . . . Manual 2 | . 1 . 1 . . Terminals 7 | . 1 . 2 4 . Fabricators . | . . . . . . Repair Stations 1 | . 1 . . . . Recycling Units 13 | . 1 3 . 9 . Scanalyzers . | . . . . . . Garrison Access . | . . . . . . Terminal Hacks 29 | . . . 1 2 26 Record 20 | . . . . . 20 Robot Analysis 5 | . . . . . 5 Open Door 2 | . . . 1 . 1 Alert Level 1 | . . . . 1 . Zone Layout 1 | . . . . 1 . Fabricator Hacks . | . . . . . . Repair Station Hacks 1 | . 1 . . . . Refit 1 | . 1 . . . . Recycling Unit Hacks 7 | . 1 1 . 5 . Retrieve Components 7 | . 1 1 . 5 . Scanalyzer . | . . . . . . Garrison Access Hacks . | . . . . . . Unauthorized Hacks . | . . . . . . Terminals . | . . . . . . Fabricators . | . . . . . . Repair Stations . | . . . . . . Recycling Units . | . . . . . . Scanalyzers . | . . . . . . Garrison Access . | . . . . . . Data Cores Recovered . | . . . . . . Used . | . . . . . . Hacking Detections 8 | . 1 1 1 5 . Full Trace Events 1 | . . . 1 . . Feedback Events . | . . . . . . Feedback Blocked . | . . . . . . Robot Schematics Acquired . | . . . . . . Robots Built . | . . . . . . Authchips . | . . . . . . Time . | . . . . . . Total Robot Build Rating . | . . . . . . Part Schematics Acquired . | . . . . . . Parts Built . | . . . . . . Authchips . | . . . . . . Time . | . . . . . . Total Part Build Rating . | . . . . . . Part Studies Acquired . | . . . . . . Parts Repaired . | . . . . . . Time . | . . . . . . Parts Recycled . | . . . . . . Recycled Matter . | . . . . . . Retrieved Matter . | . . . . . . Retrieved Components 14 | . 3 . . 11 . Parts Scanalyzed . | . . . . . . Part Schematics Acquired . | . . . . . . Parts Damaged . | . . . . . . Bothacking | -11 -10 -9 -9 -9 -9 ------------ Run | Yrd Mat Mat Sto Rec Scr Used RIF Installer . | . . . . . . Robots Hacked . | . . . . . . Non-combat . | . . . . . . Combat . | . . . . . . Robot Hacks Applied . | . . . . . . Relay Couplers Released . | . . . . . . Fabnet Peak Effective % . | . . . . . . Robots Rewired 8 | . . . . 8 . Allies Hacked . | . . . . . . Hacks Repelled . | . . . . . . Allies | -11 -10 -9 -9 -9 -9 -------- Run | Yrd Mat Mat Sto Rec Scr Total Allies 10 | . . . 2 8 . Largest Group 8 | . . . 2 8 5 Highest-Rated Group 105 | . . . 62 105 73 Highest-Rated Ally 34 | . . . 31 34 34 Total Orders 9 | . . . . 9 . ROAM 1 | . . . . 1 . FOLLOW 2 | . . . . 2 . GUARD 5 | . . . . 5 . COLLECT 1 | . . . . 1 . Ally Attacks 48 | . . . 21 16 11 Total Damage 871 | . . . 374 239 258 Kills 9 | . . . 3 2 4 Allies Corrupted . | . . . . . . Allies Melted 4 | . . . . . 4 Intel | -11 -10 -9 -9 -9 -9 ------- Run | Yrd Mat Mat Sto Rec Scr Active Infowar (turns) 1176 | . . . . 147 1029 Structural 1176 | . . . . 147 1029 Robot Analysis Total 5 | . . . . . 5 Derelict Logs Recovered . | . . . . . . Drone Launches . | . . . . . . Drone Recoveries . | . . . . . . Exploration | -11 -10 -9 -9 -9 -9 ------------- Run | Yrd Mat Mat Sto Rec Scr Turns Passed 2553 | 11 313 32 529 635 1033 Spaces Moved 2889 | 22 287 57 248 602 1673 Core 81 | 22 59 . . . . Treads . | . . . . . . Legs . | . . . . . . Wheels . | . . . . . . Hover 317 | . 26 57 201 . 33 Flight 2491 | . 202 . 47 602 1640 Fastest Speed 26 | 50 37 48 29 26 26 Average Speed 30 | 50 42 48 47 26 26 Slowest Speed 240 | 50 120 48 240 29 60 Overloaded Moves . | . . . . . . Propulsion Burnouts . | . . . . . . Robots Hopped 7 | . 5 . . . 2 Potential Cave-ins . | . . . . . . Cave-ins Triggered . | . . . . . . Exploration Rate (%) 38 | 3 44 9 31 55 87 Regions Visited 5 Branch Regions 3 Pre-discovered Areas 1 | . . . . . 1 Known Exits Taken . | . . . . . . Unknown Exits Taken 5 | 1 1 1 1 1 . Scrap Searched 2 | . . . . . 2 Spaces Dug . | . . . . . . Terrain Destroyed . | . . . . . . Melee . | . . . . . . Projectile . | . . . . . . AOE . | . . . . . . Terrain Rammed . | . . . . . . Walls Destroyed . | . . . . . . Machines Disabled . | . . . . . . Actions | -11 -10 -9 -9 -9 -9 --------- Run | Yrd Mat Mat Sto Rec Scr Total 4303 | 21 413 60 541 1015 2253 Wait 1046 | . 64 . 173 271 538 Move 2871 | 21 276 56 247 601 1670 Hop 6 | . 5 . . . 1 Pick Up 43 | . 13 . 14 7 9 Fast Attach 23 | . 4 . 11 2 6 Attach 13 | . 1 2 3 2 5 Detach 3 | . . . 2 . 1 Swap 16 | . 4 2 8 . 2 Drop 54 | . 13 . 23 6 12 Fire 91 | . 31 . 60 . . Melee 48 | . . . . 42 6 Ram 3 | . 2 . . . 1 Kick . | . . . . . . Crush . | . . . . . . Escape Stasis . | . . . . . . Rewire 86 | . . . . 84 2 Trap . | . . . . . . Miscellaneous . | . . . . . . Route ------- -11/Scrapyard -10/Materials -9/Materials -9/Storage -9/Recycling -9/Scraptown (discovered 2 exits: *Fac x2) History --------- Turn | Location | Event 3 | -11/Scrapyard | Discovered new exit (range 15) 12 | -11/Scrapyard | Entered Materials 285 | -10/Materials | Discovered new exit (range 7) 325 | -10/Materials | Entered another Materials area 325 | -9/Materials | Evolved 2 slots: Propulsion x2 350 | -9/Materials | Discovered new exit (range 8) 357 | -9/Materials | Entered Storage 574 | -9/Storage | Build established: Scavenger-Mutant 742 | -9/Storage | Met a pair of Derelict thieves 861 | -9/Storage | Lost 4 parts (4n) 873 | -9/Storage | Destroyed 9 combat bots 885 | -9/Storage | Used back door to open Recycling access 885 | -9/Storage | Discovered new exit (range 5) 886 | -9/Storage | Entered Recycling 1184 | -9/Recycling | Lost 3 allies 1199 | -9/Recycling | Scanned before Scraplab entrance 1226 | -9/Recycling | Entered Scraplab 1289 | -9/Recycling | Build established: Commander-Sprinter 1297 | -9/Recycling | Discovered new exit (range 3) 1521 | -9/Recycling | Entered Scraptown 1521 | -9/Scraptown | Accompanied by 5 allies 1521 | -9/Scraptown | System corruption cleaned by C-Scrubber 1587 | -9/Scraptown | Discovered new exit (range 11) 1606 | -9/Scraptown | Visited Spacefarers 1619 | -9/Scraptown | Visited Red Mages 1631 | -9/Scraptown | Visited Shadow of the Wyrm 1648 | -9/Scraptown | Learned location of Extension (-5) 1659 | -9/Scraptown | Visited TADAMA 1682 | -9/Scraptown | Visited UFD Registry 1682 | -9/Scraptown | Registered with UFD as "Helltalker" 1686 | -9/Scraptown | Visited CPS Storage 1687 | -9/Scraptown | Visited Awakened 1703 | -9/Scraptown | Visited Curators Association 1714 | -9/Scraptown | Visited Chapter 10 1723 | -9/Scraptown | Visited Abandonware Association 1726 | -9/Scraptown | Learned abandonware demo "MELTYB.EXE" 1726 | -9/Scraptown | Learned abandonware demo "REVENGE.EXE" 1748 | -9/Scraptown | Visited Analyses Database 1754 | -9/Scraptown | Visited Derelict Rescue Squad 1757 | -9/Scraptown | Found DRS Beacon 1765 | -9/Scraptown | Visited Cartography Club 1772 | -9/Scraptown | Found Surveybot 17 Chip 1785 | -9/Scraptown | Visited Supply Room 1790 | -9/Scraptown | Visited Sword Containment 1794 | -9/Scraptown | Found Prototype Slashing Weapon 1794 | -9/Scraptown | Identified Companion Sword 1964 | -9/Scraptown | Met Optimus 1964 | -9/Scraptown | Accepted into 0bPrime 2364 | -9/Scraptown | Civil war broke out across Scraptown 2368 | -9/Scraptown | Found Surveybot 24 Chip 2436 | -9/Scraptown | Lost 8 allies 2438 | -9/Scraptown | Identified exit to Factory 2484 | -9/Scraptown | Found Deep Structural Scanner 2514 | -9/Scraptown | Attacked by Scraptown defenders 2517 | -9/Scraptown | Core integrity fell below 50% 2517 | -9/Scraptown | Optimus destroyed in the chaos of civil war 2517 | -9/Scraptown | Destroyed Optimus 2550 | -9/Scraptown | Core integrity fell below 20% 2554 | -9/Scraptown | Destroyed by T6-ANM(j) with Overtuned Pulse Rifle Last Messages --------------- 02540_ B1-OP6(j) destroyed. 02542_ Acquired 10 matter. 02543_ Critical hit (Burn: +50). 02544_ Acquired Hover Unit. 02545_ Acquired 10 matter. 02546_ Dropped Xenon Bombardment Thruster. 02547_ Acquired Hover Unit. 02548_ 1J-VPS(j) heat short circuits Lgt. Deuterium Engine. 02550_ 1J-VPS(j) heat short circuits Ovr. Pulse Rifle. 02550_ Structural Scanner destroyed. 02550_ Critical hit (Burn: +50). 02551_ Airjet destroyed. 02552_ Bolt penetrates A6-5TI(r). 02553_ Hover Unit destroyed. 02553_ Critical hit (Burn: +37). 02554_ Slammed into A6-5TI(r). 02554_ Surveybot 17 Chip destroyed. 02554_ System corrupted by crushing effect (+4). Map ----- +----------------------------------------------------+ | | | | | ###### ########### ##########"" """"#### | | ###### ############ ###########" "#### | | #"??"" ""???###?### ###########" ""##?? | | #"?? " " ?? ### """"""""###" """##?? | | """ ""#"?" "?"### ### " ""###" """##?? | | """ "#" " " "#"" """ "###"""""""##?? | | """ "#""""" """""#" """ " ""############?? | | "" "##?### ###?##" " """"""""##########???? | | " "#"?""" """?"#" ##"""###########?????? | | """ ""#"???? ????"#" "" " ################?????? | | ### ###"???? ????"#" " ###"""""""""## """"##? | | ### ???? ????"#"""""" ###" ?? "## | | ##? | | ######?????? ????"####### ###" "## """"##? | | ############ ############!* ###" """ "## ||| ##? | | ############ ############%! ###" """ "## """"##? | | =! ###" """ "## | | ##? | | %! ###" "## """"##? | | #########################[ ##???? "## || ##? | | ########################=![ ###" "## ### | | #########################%[%########## ##### ###"# | | """"""################# !!! / | | "## ""##"!""" # j =%h | | !! "## " " !%/[%! # rhjj !% | | !! "## " " ##*%! * # @g j =[! | | ! "## " ##*"""%= # j [% = | | ! = "## " " ##="""! ;% jj ########;######## | | ! "## " " # """ # ################# | | ![= "## "" # """ #! ##?????????????## | | "## " " # """ #%[ ##?????????????## % | | """ ""## "" " # ! j##??????????##### | | ### #### " " # " " # !!##????????####### | | ### #### ###""""" # =%##????????####"## | | """ ""################# =!##????????""""""" ! | | "################# ##???? ????"#" | | "" "####""""""""""""# =##??%"###+??? "#" ! | | "" "####"""" " """ # x ##?"/"#"" # "#" =%* | | "####""" ! #j j/%###"["# ? #" "## [= | | ""#######"! [% j *###"%[# """#" "#" =%! | | """""####!!#"[[ "! # x ###"%=#"#### "## [%! | | """"""####!!#" !" # *%##" !! *%= "## = | | """"""####!!#" ! " # ### ! ## | | ######??## !#"! # """" #""""!"""### ! | | ######??##!!#""= " " # ! [ !%[%=!%[ | | "???""####!!+ !%=""" # %!% =!=!!!!= | | "?? "#######"""!""" # [ !%! [* | | "? "####""""""""" # [==!==[==% | | " "##?############## =*!=[!%[%!= | | " "##?######## !=* =! [ ![%[[==[= | +----------------------------------------------------+ Best States ------------- Heat Dissipation 38 Energy Generation 18 Energy Capacity 480 Matter Stores 300 Matter Capacity 300 Sight Range 16 Terrain Scan Density 1210 Armor Coverage 160 Evasion (%) 64 Item Schematics ----------------- None Robot Schematics ------------------ None Fabricated ------------ Nothing Repaired ---------- Nothing Studied --------- None Alien Tech Used ----------------- None Achievements -------------- None Challenges ------------ None Game ------ Seed CoolingLinearDrive Manual? 0 Play Time 00:46:24 Cumulative 46.6 hours Start 2026.09.01 @ 22:24:31 End 2026.09.01 @ 23:29:06 Sessions 1 Manual Loads 0 Difficulty Rogue Special Mode None Game No. 118 Rogue 118 Adventurer 0 Explorer 0 Win Type - Total 3 Types 3/0/0/0/0/0/0/0/0/0 Lore% 45 Gallery% 38 Achievement% 41 Wizard Run 0 Options --------- Layout 2 ASCII 0 Keyboard 0 Movement Arrows Keybinds 0 Fullscreen 1 Font 16/SmallcapsGlow Map View 50x49 Zoom Use 0% Tactical HUD 1 Map Filters NONE Filters NONE Steam SD RUN: 4e42677f-487e-46e3-a825-a4a28c5737e3